fUST/lending_fUST_20260531
["ID","MTS","AMOUNT","RATE_DAILY","PERIOD"]
[423559343,1780223453000,-354.44491368,0.00014507,2]
[423559355,1780223453000,-1773.55,0.0001452,2]
[423559344,1780223453000,-369.52545497,0.00014507,2]
[423559345,1780223453000,-309.00051505,0.00014507,2]
[423559321,1780223453000,-414.41578303,0.00014419,2]
[423559326,1780223453000,-340.99257182,0.00014507,2]
[423559323,1780223453000,-360.32274884,0.00014419,2]
[423559327,1780223453000,-740.89280207,0.00014507,2]
[423559325,1780223453000,-335.00576295,0.00014507,2]
[423559331,1780223453000,-313.40837999,0.00014507,2]
[423559335,1780223453000,-1815.68757975,0.00014507,2]
[423559333,1780223453000,-457.03258914,0.00014507,2]
[423559322,1780223453000,-361.69269294,0.00014419,2]
[423559337,1780223453000,-231.48132978,0.00014507,2]
[423559334,1780223453000,-302.83517671,0.00014507,2]
[423559339,1780223453000,-347.95182964,0.00014507,2]
[423559342,1780223453000,-380.3795729,0.00014507,2]
[423559332,1780223453000,-313.07352203,0.00014507,2]
[423559341,1780223453000,-341.5664262,0.00014507,2]
[423559338,1780223453000,-300.68367219,0.00014507,2]
[423559336,1780223453000,-271.41149965,0.00014507,2]
[423559340,1780223453000,-329.15793991,0.00014507,2]
[423559389,1780223454000,-176.63236798,0.00014974,2]
[423559397,1780223454000,-164.80429406,0.00014974,2]
[423559387,1780223454000,-180.69547154,0.00014974,2]
[423559390,1780223454000,-182.83022839,0.00014974,2]
[423559395,1780223454000,-242.78614788,0.00014974,2]
[423559406,1780223454000,-685.54888371,0.00014974,2]
[423559393,1780223454000,-159.13041704,0.00014974,2]
[423559405,1780223454000,-195.93343579,0.00014974,2]
[423559396,1780223454000,-162.62839946,0.00014974,2]
[423559404,1780223454000,-152.37955737,0.00014974,2]
[423559398,1780223454000,-556.60606315,0.00014974,2]
[423559401,1780223454000,-280.8579793,0.00014974,2]
[423559399,1780223454000,-595.11969929,0.00014974,2]
[423559400,1780223454000,-205.2365557,0.00014974,2]
[423559403,1780223454000,-469.61028305,0.00014974,2]
[423559402,1780223454000,-470.11256998,0.00014974,2]
[423559408,1780223454000,-224.61250299,0.00014974,2]
[423559410,1780223454000,-454.25276507,0.00014974,2]
[423559392,1780223454000,-1111.33920311,0.00014974,2]
[423559394,1780223454000,-1723.3628048,0.00014974,2]
[423559386,1780223454000,-3001.26931041,0.00014972,2]
[423559366,1780223454000,-151.0,0.000146,2]
[423559385,1780223454000,-249.319,0.00014956,2]
[423559413,1780223454000,-451.02550828,0.00014974,2]
[423559369,1780223454000,-535.08854742,0.00014884,2]
[423559373,1780223454000,-465.66587628,0.00014884,2]
[423559368,1780223454000,-519.42764335,0.00014884,2]
[423559367,1780223454000,-612.11237899,0.000147,2]
[423559370,1780223454000,-591.4589317,0.00014884,2]
[423559372,1780223454000,-509.18497937,0.00014884,2]
[423559371,1780223454000,-485.26820239,0.00014884,2]
[423559374,1780223454000,-451.69159319,0.00014884,2]
[423559391,1780223454000,-511.48885773,0.00014974,2]
[423559375,1780223454000,-621.62367455,0.00014884,2]
[423559378,1780223454000,-540.48412327,0.00014884,2]
[423559381,1780223454000,-229.83781396,0.00014899,2]
[423559380,1780223454000,-209.48103728,0.00014884,2]
[423559376,1780223454000,-243.89725994,0.00014884,2]
[423559379,1780223454000,-169.82093486,0.00014884,2]
[423559382,1780223454000,-511.84710992,0.00014899,2]
[423559384,1780223454000,-201.57784518,0.00014932,2]
[423559383,1780223454000,-193.59966958,0.000149,2]
[423559388,1780223454000,-502.50864442,0.00014974,2]
[423559377,1780223454000,-542.53903941,0.00014884,2]
[423559412,1780223454000,-754.33924415,0.00014974,2]
[423559453,1780223454000,-6938.1582455,0.00015,2]
[423559415,1780223454000,-166.85423748,0.00014974,2]
[423559436,1780223454000,-152.0,7.604e-05,2]
[423559438,1780223454000,-582.27478548,0.00011232,2]
[423559437,1780223454000,-595.99,8.219e-05,2]
[423559440,1780223454000,-547.1308432,0.00011506,2]
[423559443,1780223454000,-1234.92,0.00012054,2]
[423559442,1780223454000,-1234.92,0.0001178,2]
[423559445,1780223454000,-647.348208,0.00012328,2]
[423559444,1780223454000,-587.571792,0.00012328,2]
[423559441,1780223454000,-687.7891568,0.00011506,2]
[423559451,1780223454000,-794.01054306,0.00013698,2]
[423559448,1780223454000,-1234.92,0.0001315,2]
[423559449,1780223454000,-1234.92,0.00013424,2]
[423559450,1780223454000,-12053.13401069,0.00015,2]
[423559447,1780223454000,-1234.92,0.00012876,2]
[423559446,1780223454000,-1234.92,0.00012602,2]
[423559456,1780223454000,-500.0,8.219e-05,2]
[423559452,1780223454000,-440.90945694,0.00013698,2]
[423559455,1780223454000,-2070.0,0.00015,2]
[423559454,1780223454000,-608.45055747,0.00015,2]
[423559434,1780223454000,-1234.92,0.00010958,2]
[423559435,1780223454000,-512.47923397,0.00015,2]
[423559439,1780223454000,-652.64521452,0.00011232,2]
[423559432,1780223454000,-368.75,0.00015,2]
[423559418,1780223454000,-570.56935934,0.00014974,2]
[423559407,1780223454000,-162.39075482,0.00014974,2]
[423559411,1780223454000,-2723.53136963,0.00014974,2]
[423559414,1780223454000,-521.92774446,0.00014974,2]
[423559416,1780223454000,-493.73690986,0.00014974,2]
[423559433,1780223454000,-1234.92,0.00010684,2]
[423559420,1780223454000,-531.66737052,0.00014974,2]
[423559431,1780223454000,-65493.41152644,0.00015,2]
[423559430,1780223454000,-1009.21010639,0.00015,2]
[423559419,1780223454000,-232.84628538,0.00014974,2]
[423559417,1780223454000,-512.3496393,0.00014974,2]
[423559421,1780223454000,-226.8164843,0.00014974,2]
[423559422,1780223454000,-190.43282185,0.00014974,2]
[423559428,1780223454000,-1033.13195552,0.00015,2]
[423559429,1780223454000,-152.98504311,0.00015,2]
[423559426,1780223454000,-607.69295013,0.00014974,2]
[423559409,1780223454000,-186.32631834,0.00014974,2]
[423559425,1780223454000,-463.50077258,0.00014974,2]
[423559424,1780223454000,-554.28818245,0.00014974,2]
[423559427,1780223454000,-112073.12966679,0.00015,2]
[423559423,1780223454000,-191.1730959,0.00014974,2]
[423559463,1780223455000,-850.91958602,0.00015,2]
[423559462,1780223455000,-1591.02251382,0.00015,2]
[423559460,1780223455000,-1234.94615297,0.0001452,2]
[423559458,1780223455000,-1234.92,0.00013972,2]
[423559459,1780223455000,-1234.92,0.00014246,2]
[423559457,1780223455000,-767.37531181,9.586e-05,2]
[423559461,1780223455000,-20186.37200863,0.00015,2]
[423559464,1780223472000,-500.0,7.264e-05,2]
[423559465,1780223489000,-500.0,7.264e-05,2]
[423559466,1780223506000,-1222.3224032,7.165e-05,2]
[423559467,1780223522000,-500.0,7.165e-05,2]
[423559520,1780224632000,-300.0,7.306e-05,2]
[423559524,1780224632000,-3885.28532405,7.9e-05,2]
[423559489,1780224632000,-300.0,6.7e-05,2]
[423559491,1780224632000,-500.0,6.962e-05,2]
[423559493,1780224632000,-500.0,6.962e-05,2]
[423559492,1780224632000,-335.11532175,6.962e-05,2]
[423559495,1780224632000,-25523.5572833,6.963e-05,2]
[423559499,1780224632000,-300.0,7.306e-05,2]
[423559494,1780224632000,-254.3824801,6.962e-05,2]
[423559500,1780224632000,-300.0,7.306e-05,2]
[423559501,1780224632000,-300.0,7.306e-05,2]
[423559497,1780224632000,-300.0,7.306e-05,2]
[423559496,1780224632000,-152.0,7.288e-05,2]
[423559498,1780224632000,-300.0,7.306e-05,2]
[423559490,1780224632000,-434.81441346,6.962e-05,2]
[423559503,1780224632000,-245.94904809,7.306e-05,2]
[423559522,1780224632000,-600.0,7.307e-05,2]
[423559516,1780224632000,-263.58926583,7.306e-05,2]
[423559515,1780224632000,-34.08371962,7.306e-05,2]
[423559502,1780224632000,-54.05095191,7.306e-05,2]
[423559513,1780224632000,-265.91628038,7.306e-05,2]
[423559508,1780224632000,-300.0,7.306e-05,2]
[423559507,1780224632000,-300.0,7.306e-05,2]
[423559506,1780224632000,-300.0,7.306e-05,2]
[423559518,1780224632000,-36.41073417,7.306e-05,2]
[423559505,1780224632000,-300.0,7.306e-05,2]
[423559504,1780224632000,-300.0,7.306e-05,2]
[423559510,1780224632000,-300.0,7.306e-05,2]
[423559616,1780224638000,-500.0,8.219e-05,2]
[423559618,1780224638000,-500.0,8.219e-05,2]
[423559622,1780224638000,-500.0,8.219e-05,2]
[423559626,1780224638000,-500.0,8.219e-05,2]
[423559624,1780224638000,-500.0,8.219e-05,2]
[423559619,1780224638000,-500.0,8.219e-05,2]
[423559623,1780224638000,-500.0,8.219e-05,2]
[423559620,1780224638000,-392.42175857,8.219e-05,2]
[423559617,1780224638000,-500.0,8.219e-05,2]
[423559613,1780224638000,-500.0,8.219e-05,2]
[423559621,1780224638000,-500.0,8.219e-05,2]
[423559614,1780224638000,-500.0,8.219e-05,2]
[423559607,1780224638000,-500.18853187,8.219e-05,2]
[423559612,1780224638000,-500.0,8.219e-05,2]
[423559606,1780224638000,-18024.6891944,8.047e-05,2]
[423559611,1780224638000,-500.0,8.219e-05,2]
[423559610,1780224638000,-500.0,8.219e-05,2]
[423559605,1780224638000,-720.0,8.038e-05,2]
[423559603,1780224638000,-5000.0,8e-05,2]
[423559604,1780224638000,-5000.0,8e-05,2]
[423559602,1780224638000,-5000.0,8e-05,2]
[423559600,1780224638000,-1193.25754588,7.9e-05,2]
[423559601,1780224638000,-106327.89854152,7.9e-05,2]
[423559625,1780224638000,-500.39135491,8.219e-05,2]
[423559615,1780224638000,-2944.0463,8.219e-05,2]
[423559628,1780224638000,-245.12659779,8.219e-05,2]
[423559609,1780224638000,-500.0,8.219e-05,2]
[423559630,1780224638000,-180.55341535,8.219e-05,2]
[423559627,1780224638000,-500.0,8.219e-05,2]
[423559655,1780224638000,-500.0,8.219e-05,2]
[423559652,1780224638000,-500.0,8.219e-05,2]
[423559651,1780224638000,-500.0,8.219e-05,2]
[423559653,1780224638000,-500.0,8.219e-05,2]
[423559645,1780224638000,-500.0,8.219e-05,2]
[423559649,1780224638000,-500.0,8.219e-05,2]
[423559647,1780224638000,-500.0,8.219e-05,2]
[423559650,1780224638000,-500.0,8.219e-05,2]
[423559648,1780224638000,-500.0,8.219e-05,2]
[423559643,1780224638000,-500.0,8.219e-05,2]
[423559646,1780224638000,-500.0,8.219e-05,2]
[423559644,1780224638000,-500.0,8.219e-05,2]
[423559654,1780224638000,-500.0,8.219e-05,2]
[423559642,1780224638000,-500.0,8.219e-05,2]
[423559641,1780224638000,-500.0,8.219e-05,2]
[423559629,1780224638000,-500.0,8.219e-05,2]
[423559632,1780224638000,-500.0,8.219e-05,2]
[423559631,1780224638000,-500.0,8.219e-05,2]
[423559635,1780224638000,-500.0,8.219e-05,2]
[423559637,1780224638000,-500.0,8.219e-05,2]
[423559633,1780224638000,-500.0,8.219e-05,2]
[423559639,1780224638000,-500.0,8.219e-05,2]
[423559638,1780224638000,-500.0,8.219e-05,2]
[423559636,1780224638000,-500.0,8.219e-05,2]
[423559640,1780224638000,-500.0,8.219e-05,2]
[423559634,1780224638000,-500.0,8.219e-05,2]
[423559695,1780224639000,-500.0,8.219e-05,2]
[423559696,1780224639000,-500.0,8.219e-05,2]
[423559694,1780224639000,-500.0,8.219e-05,2]
[423559700,1780224639000,-500.0,8.219e-05,2]
[423559701,1780224639000,-500.0,8.219e-05,2]
[423559698,1780224639000,-500.0,8.219e-05,2]
[423559683,1780224639000,-500.0,8.219e-05,2]
[423559692,1780224639000,-500.0,8.219e-05,2]
[423559691,1780224639000,-500.0,8.219e-05,2]
[423559690,1780224639000,-626.45208253,8.219e-05,2]
[423559689,1780224639000,-483.0299339,8.219e-05,2]
[423559699,1780224639000,-500.0,8.219e-05,2]
[423559693,1780224639000,-500.0,8.219e-05,2]
[423559702,1780224639000,-500.0,8.219e-05,2]
[423559716,1780224639000,-500.0,8.219e-05,2]
[423559704,1780224639000,-500.0,8.219e-05,2]
[423559706,1780224639000,-500.0,8.219e-05,2]
[423559705,1780224639000,-500.0,8.219e-05,2]
[423559707,1780224639000,-500.0,8.219e-05,2]
[423559708,1780224639000,-500.0,8.219e-05,2]
[423559711,1780224639000,-500.0,8.219e-05,2]
[423559712,1780224639000,-500.0,8.219e-05,2]
[423559713,1780224639000,-500.0,8.219e-05,2]
[423559714,1780224639000,-500.0,8.219e-05,2]
[423559710,1780224639000,-177.26225668,8.219e-05,2]
[423559709,1780224639000,-544.67925472,8.219e-05,2]
[423559715,1780224639000,-500.0,8.219e-05,2]
[423559682,1780224639000,-500.0,8.219e-05,2]
[423559703,1780224639000,-500.0,8.219e-05,2]
[423559688,1780224639000,-500.0,8.219e-05,2]
[423559672,1780224639000,-500.0,8.219e-05,2]
[423559686,1780224639000,-500.0,8.219e-05,2]
[423559657,1780224639000,-500.0,8.219e-05,2]
[423559666,1780224639000,-500.0,8.219e-05,2]
[423559656,1780224639000,-500.0,8.219e-05,2]
[423559658,1780224639000,-500.0,8.219e-05,2]
[423559663,1780224639000,-500.0,8.219e-05,2]
[423559659,1780224639000,-821.69,8.219e-05,2]
[423559661,1780224639000,-500.0,8.219e-05,2]
[423559664,1780224639000,-500.0,8.219e-05,2]
[423559660,1780224639000,-356.63638619,8.219e-05,2]
[423559662,1780224639000,-500.0,8.219e-05,2]
[423559665,1780224639000,-500.0,8.219e-05,2]
[423559668,1780224639000,-221.79537452,8.219e-05,2]
[423559667,1780224639000,-500.0,8.219e-05,2]
[423559687,1780224639000,-500.0,8.219e-05,2]
[423559669,1780224639000,-500.0,8.219e-05,2]
[423559671,1780224639000,-500.0,8.219e-05,2]
[423559717,1780224639000,-500.0,8.219e-05,2]
[423559676,1780224639000,-500.0,8.219e-05,2]
[423559673,1780224639000,-500.0,8.219e-05,2]
[423559675,1780224639000,-500.0,8.219e-05,2]
[423559677,1780224639000,-500.0,8.219e-05,2]
[423559674,1780224639000,-500.0,8.219e-05,2]
[423559678,1780224639000,-500.0,8.219e-05,2]
[423559679,1780224639000,-500.0,8.219e-05,2]
[423559681,1780224639000,-500.0,8.219e-05,2]
[423559680,1780224639000,-500.0,8.219e-05,2]
[423559685,1780224639000,-500.0,8.219e-05,2]
[423559684,1780224639000,-500.0,8.219e-05,2]
[423559670,1780224639000,-500.0,8.219e-05,2]
[423559719,1780224639000,-500.0,8.219e-05,2]
[423559697,1780224639000,-500.0,8.219e-05,2]
[423559720,1780224639000,-500.0,8.219e-05,2]
[423559752,1780224639000,-233.60797968,8.493e-05,2]
[423559754,1780224639000,-500.0,8.493e-05,2]
[423559756,1780224639000,-500.0,8.493e-05,2]
[423559755,1780224639000,-500.0,8.493e-05,2]
[423559758,1780224639000,-500.0,8.493e-05,2]
[423559761,1780224639000,-500.0,8.493e-05,2]
[423559763,1780224639000,-157.90755984,8.493e-05,2]
[423559757,1780224639000,-500.0,8.493e-05,2]
[423559764,1780224639000,-500.0,8.493e-05,2]
[423559760,1780224639000,-500.0,8.493e-05,2]
[423559759,1780224639000,-500.0,8.493e-05,2]
[423559767,1780224639000,-500.0,8.493e-05,2]
[423559766,1780224639000,-500.0,8.493e-05,2]
[423559765,1780224639000,-500.0,8.493e-05,2]
[423559768,1780224639000,-500.0,8.493e-05,2]
[423559769,1780224639000,-500.0,8.493e-05,2]
[423559770,1780224639000,-500.0,8.493e-05,2]
[423559771,1780224639000,-500.0,8.493e-05,2]
[423559773,1780224639000,-500.0,8.493e-05,2]
[423559772,1780224639000,-500.0,8.493e-05,2]
[423559776,1780224639000,-500.0,8.493e-05,2]
[423559778,1780224639000,-500.0,8.493e-05,2]
[423559774,1780224639000,-500.0,8.493e-05,2]
[423559779,1780224639000,-500.0,8.493e-05,2]
[423559777,1780224639000,-500.0,8.493e-05,2]
[423559775,1780224639000,-821.69,8.493e-05,2]
[423559780,1780224639000,-500.0,8.493e-05,2]
[423559718,1780224639000,-500.0,8.219e-05,2]
[423559781,1780224639000,-500.0,8.493e-05,2]
[423559751,1780224639000,-500.0,8.493e-05,2]
[423559753,1780224639000,-500.0,8.493e-05,2]
[423559762,1780224639000,-500.0,8.493e-05,2]
[423559750,1780224639000,-500.0,8.493e-05,2]
[423559721,1780224639000,-378.64174668,8.219e-05,2]
[423559745,1780224639000,-500.0,8.493e-05,2]
[423559723,1780224639000,-500.0,8.219e-05,2]
[423559725,1780224639000,-500.0,8.219e-05,2]
[423559724,1780224639000,-500.0,8.219e-05,2]
[423559728,1780224639000,-500.0,8.219e-05,2]
[423559726,1780224639000,-370.76148975,8.219e-05,2]
[423559727,1780224639000,-500.0,8.219e-05,2]
[423559730,1780224639000,-500.0,8.219e-05,2]
[423559729,1780224639000,-220.44475696,8.219e-05,2]
[423559732,1780224639000,-500.0,8.219e-05,2]
[423559731,1780224639000,-500.0,8.219e-05,2]
[423559734,1780224639000,-500.0,8.219e-05,2]
[423559733,1780224639000,-500.0,8.219e-05,2]
[423559738,1780224639000,-500.0,8.219e-05,2]
[423559722,1780224639000,-500.0,8.219e-05,2]
[423559742,1780224639000,-500.0,8.219e-05,2]
[423559737,1780224639000,-500.0,8.219e-05,2]
[423559735,1780224639000,-500.0,8.219e-05,2]
[423559741,1780224639000,-500.0,8.219e-05,2]
[423559736,1780224639000,-500.0,8.219e-05,2]
[423559739,1780224639000,-555.56,8.219e-05,2]
[423559740,1780224639000,-500.0,8.219e-05,2]
[423559743,1780224639000,-500.0,8.219e-05,2]
[423559747,1780224639000,-2944.0463,8.493e-05,2]
[423559749,1780224639000,-500.0,8.493e-05,2]
[423559748,1780224639000,-500.0,8.493e-05,2]
[423559744,1780224639000,-500.0,8.219e-05,2]
[423559746,1780224639000,-500.0,8.493e-05,2]
[423559857,1780224640000,-500.0,8.767e-05,2]
[423559837,1780224640000,-555.56,8.493e-05,2]
[423559839,1780224640000,-500.0,8.493e-05,2]
[423559842,1780224640000,-500.0,8.493e-05,2]
[423559835,1780224640000,-500.0,8.493e-05,2]
[423559813,1780224640000,-500.0,8.493e-05,2]
[423559824,1780224640000,-500.0,8.493e-05,2]
[423559822,1780224640000,-500.0,8.493e-05,2]
[423559816,1780224640000,-500.0,8.493e-05,2]
[423559815,1780224640000,-500.0,8.493e-05,2]
[423559840,1780224640000,-500.0,8.493e-05,2]
[423559814,1780224640000,-500.0,8.493e-05,2]
[423559826,1780224640000,-500.0,8.493e-05,2]
[423559827,1780224640000,-500.0,8.493e-05,2]
[423559848,1780224640000,-500.0,8.767e-05,2]
[423559831,1780224640000,-500.0,8.493e-05,2]
[423559846,1780224640000,-283.8411,8.63e-05,2]
[423559833,1780224640000,-500.0,8.493e-05,2]
[423559844,1780224640000,-500.0,8.493e-05,2]
[423559850,1780224640000,-500.0,8.767e-05,2]
[423559852,1780224640000,-2944.0463,8.767e-05,2]
[423559861,1780224640000,-500.0,8.767e-05,2]
[423559853,1780224640000,-500.0,8.767e-05,2]
[423559863,1780224640000,-500.0,8.767e-05,2]
[423559855,1780224640000,-500.0,8.767e-05,2]
[423559867,1780224640000,-500.0,8.767e-05,2]
[423559865,1780224640000,-500.0,8.767e-05,2]
[423559811,1780224640000,-500.0,8.493e-05,2]
[423559829,1780224640000,-500.0,8.493e-05,2]
[423559810,1780224640000,-500.0,8.493e-05,2]
[423559782,1780224640000,-500.0,8.493e-05,2]
[423559812,1780224640000,-500.0,8.493e-05,2]
[423559869,1780224640000,-500.0,8.767e-05,2]
[423559784,1780224640000,-500.0,8.493e-05,2]
[423559783,1780224640000,-500.0,8.493e-05,2]
[423559786,1780224640000,-500.0,8.493e-05,2]
[423559787,1780224640000,-250.17859059,8.493e-05,2]
[423559785,1780224640000,-500.0,8.493e-05,2]
[423559789,1780224640000,-500.0,8.493e-05,2]
[423559788,1780224640000,-500.0,8.493e-05,2]
[423559790,1780224640000,-500.0,8.493e-05,2]
[423559792,1780224640000,-161.53149075,8.493e-05,2]
[423559791,1780224640000,-500.0,8.493e-05,2]
[423559793,1780224640000,-508.1672781,8.493e-05,2]
[423559794,1780224640000,-500.0,8.493e-05,2]
[423559795,1780224640000,-583.95404397,8.493e-05,2]
[423559798,1780224640000,-500.0,8.493e-05,2]
[423559799,1780224640000,-500.0,8.493e-05,2]
[423559796,1780224640000,-500.0,8.493e-05,2]
[423559797,1780224640000,-500.0,8.493e-05,2]
[423559801,1780224640000,-628.21667168,8.493e-05,2]
[423559803,1780224640000,-500.0,8.493e-05,2]
[423559800,1780224640000,-500.0,8.493e-05,2]
[423559802,1780224640000,-500.0,8.493e-05,2]
[423559804,1780224640000,-500.0,8.493e-05,2]
[423559805,1780224640000,-500.0,8.493e-05,2]
[423559806,1780224640000,-500.0,8.493e-05,2]
[423559807,1780224640000,-500.0,8.493e-05,2]
[423559808,1780224640000,-500.0,8.493e-05,2]
[423559820,1780224640000,-500.0,8.493e-05,2]
[423559809,1780224640000,-500.0,8.493e-05,2]
[423559818,1780224640000,-500.0,8.493e-05,2]
[423559859,1780224640000,-500.0,8.767e-05,2]
[423559967,1780224640000,-500.0,8.767e-05,2]
[423559872,1780224640000,-500.0,8.767e-05,2]
[423559943,1780224640000,-500.0,8.767e-05,2]
[423559949,1780224640000,-500.0,8.767e-05,2]
[423559947,1780224640000,-500.0,8.767e-05,2]
[423559945,1780224640000,-500.0,8.767e-05,2]
[423559951,1780224640000,-500.0,8.767e-05,2]
[423559953,1780224640000,-500.0,8.767e-05,2]
[423559963,1780224640000,-500.0,8.767e-05,2]
[423559965,1780224640000,-500.0,8.767e-05,2]
[423559955,1780224640000,-500.0,8.767e-05,2]
[423559957,1780224640000,-500.0,8.767e-05,2]
[423559972,1780224640000,-628.47,8.767e-05,2]
[423559974,1780224640000,-500.0,8.767e-05,2]
[423559959,1780224640000,-500.0,8.767e-05,2]
[423559941,1780224640000,-500.0,8.767e-05,2]
[423559961,1780224640000,-500.0,8.767e-05,2]
[423559976,1780224640000,-500.0,8.767e-05,2]
[423559978,1780224640000,-500.0,8.767e-05,2]
[423559980,1780224640000,-500.0,8.767e-05,2]
[423559982,1780224640000,-500.0,8.767e-05,2]
[423559984,1780224640000,-500.0,8.767e-05,2]
[423559988,1780224640000,-500.0,8.767e-05,2]
[423559986,1780224640000,-500.0,8.767e-05,2]
[423559990,1780224640000,-500.0,8.767e-05,2]
[423559994,1780224640000,-500.0,8.767e-05,2]
[423559998,1780224640000,-500.0,8.767e-05,2]
[423559992,1780224640000,-555.56,8.767e-05,2]
[423559996,1780224640000,-500.0,8.767e-05,2]
[423559871,1780224640000,-500.0,8.767e-05,2]
[423559968,1780224640000,-500.0,8.767e-05,2]
[423559937,1780224640000,-500.0,8.767e-05,2]
[423559970,1780224640000,-500.0,8.767e-05,2]
[423559933,1780224640000,-500.0,8.767e-05,2]
[423559874,1780224640000,-500.0,8.767e-05,2]
[423559927,1780224640000,-500.0,8.767e-05,2]
[423559888,1780224640000,-500.0,8.767e-05,2]
[423559890,1780224640000,-500.0,8.767e-05,2]
[423559886,1780224640000,-500.0,8.767e-05,2]
[423559876,1780224640000,-500.0,8.767e-05,2]
[423559892,1780224640000,-500.0,8.767e-05,2]
[423559882,1780224640000,-500.0,8.767e-05,2]
[423559884,1780224640000,-500.0,8.767e-05,2]
[423559880,1780224640000,-500.0,8.767e-05,2]
[423559878,1780224640000,-500.0,8.767e-05,2]
[423559900,1780224640000,-821.69,8.767e-05,2]
[423559896,1780224640000,-500.0,8.767e-05,2]
[423559898,1780224640000,-500.0,8.767e-05,2]
[423559902,1780224640000,-440.36469939,8.767e-05,2]
[423559894,1780224640000,-500.0,8.767e-05,2]
[423559939,1780224640000,-172.54957007,8.767e-05,2]
[423559935,1780224640000,-343.43455674,8.767e-05,2]
[423559905,1780224640000,-265.47602992,8.767e-05,2]
[423559931,1780224640000,-500.0,8.767e-05,2]
[423559929,1780224640000,-278.27880041,8.767e-05,2]
[423559925,1780224640000,-500.0,8.767e-05,2]
[423559917,1780224640000,-500.0,8.767e-05,2]
[423559921,1780224640000,-500.0,8.767e-05,2]
[423559915,1780224640000,-500.0,8.767e-05,2]
[423559923,1780224640000,-500.0,8.767e-05,2]
[423559907,1780224640000,-500.0,8.767e-05,2]
[423559913,1780224640000,-441.79482215,8.767e-05,2]
[423559904,1780224640000,-500.0,8.767e-05,2]
[423559919,1780224640000,-500.0,8.767e-05,2]
[423560063,1780224641000,-500.0,9.041e-05,2]
[423560082,1780224641000,-500.0,9.041e-05,2]
[423560080,1780224641000,-500.0,9.041e-05,2]
[423560079,1780224641000,-500.0,9.041e-05,2]
[423560066,1780224641000,-500.0,9.041e-05,2]
[423560064,1780224641000,-517.35106682,9.041e-05,2]
[423560077,1780224641000,-615.92427851,9.041e-05,2]
[423560074,1780224641000,-500.0,9.041e-05,2]
[423560059,1780224641000,-649.84376502,9.041e-05,2]
[423560078,1780224641000,-500.0,9.041e-05,2]
[423560061,1780224641000,-500.0,9.041e-05,2]
[423560089,1780224641000,-500.0,9.041e-05,2]
[423560057,1780224641000,-500.0,9.041e-05,2]
[423560093,1780224641000,-500.0,9.041e-05,2]
[423560097,1780224641000,-500.0,9.041e-05,2]
[423560091,1780224641000,-500.0,9.041e-05,2]
[423560083,1780224641000,-217.39379083,9.041e-05,2]
[423560086,1780224641000,-500.0,9.041e-05,2]
[423560085,1780224641000,-500.0,9.041e-05,2]
[423560090,1780224641000,-500.0,9.041e-05,2]
[423560084,1780224641000,-611.8543049,9.041e-05,2]
[423560081,1780224641000,-456.97532741,9.041e-05,2]
[423560087,1780224641000,-500.0,9.041e-05,2]
[423560088,1780224641000,-500.0,9.041e-05,2]
[423560105,1780224641000,-500.0,9.041e-05,2]
[423560095,1780224641000,-500.0,9.041e-05,2]
[423560094,1780224641000,-500.0,9.041e-05,2]
[423560096,1780224641000,-500.0,9.041e-05,2]
[423560076,1780224641000,-500.0,9.041e-05,2]
[423560092,1780224641000,-500.0,9.041e-05,2]
[423560072,1780224641000,-500.0,9.041e-05,2]
[423560000,1780224641000,-500.0,8.767e-05,2]
[423560070,1780224641000,-500.0,9.041e-05,2]
[423560002,1780224641000,-864.0,8.842e-05,2]
[423560004,1780224641000,-500.0,9.041e-05,2]
[423560006,1780224641000,-500.0,9.041e-05,2]
[423560007,1780224641000,-2944.0463,9.041e-05,2]
[423560009,1780224641000,-500.0,9.041e-05,2]
[423560011,1780224641000,-500.0,9.041e-05,2]
[423560024,1780224641000,-500.0,9.041e-05,2]